fUST/lending_fUST_20250827
["ID","MTS","AMOUNT","RATE_DAILY","PERIOD"]
[381549706,1756278645189,-189.69645233,0.00030536,2]
[381549707,1756278645199,-470.13943817,0.00030563,2]
[381549710,1756278645209,-433.93,0.00030581,15]
[381549712,1756278645218,-151.0,0.000306,13]
[381549713,1756278645229,-1060.0,0.000306,2]
[381549715,1756278645238,-14462.41423572,0.00030604,2]
[381549717,1756278645247,-3679.0,0.00030625,2]
[381549719,1756278645257,-237.0,0.00030631,2]
[381549721,1756278645267,-750.0,0.0003066,5]
[381549723,1756278645276,-470.13943817,0.00030663,2]
[381549726,1756278645286,-433.93,0.00030681,15]
[381549728,1756278645296,-13951.92,0.000307,2]
[381549730,1756278645307,-4965.45,0.000307,7]
[381549732,1756278645316,-1724.589409,0.000307,6]
[381549734,1756278645327,-92975.71,0.000307,7]
[381549736,1756278645336,-237.0,0.00030704,2]
[381549738,1756278645346,-866.0,0.00030743,2]
[381549739,1756278645357,-470.13943817,0.00030763,2]
[381549740,1756278645366,-433.93,0.00030781,15]
[381549741,1756278645376,-199.0,0.000308,120]
[381549742,1756278645386,-199.0,0.000308,120]
[381549743,1756278645395,-470.13943817,0.00030863,2]
[381549744,1756278645406,-433.93,0.00030881,15]
[381549745,1756278645415,-237.0,0.00030921,2]
[381549746,1756278645424,-470.13943817,0.00030963,2]
[381549747,1756278645434,-433.93,0.00030981,15]
[381549748,1756278645444,-154.0,0.00031,120]
[381549749,1756278645453,-500.0,0.00031,14]
[381549751,1756278645462,-866.0,0.00031017,2]
[381549753,1756278645472,-187.40190528,0.00031022,7]
[381549755,1756278645481,-237.0,0.00031043,2]
[381549757,1756278645491,-3679.0,0.00031056,2]
[381549759,1756278645502,-433.93,0.00031081,15]
[381549761,1756278645512,-237.0,0.00031132,7]
[381549763,1756278645521,-201.46820332,0.00031145,2]
[381549765,1756278645532,-1160.0,0.00031148,2]
[381549767,1756278645541,-433.93,0.00031181,15]
[381549769,1756278645551,-6989.83,0.000312,7]
[381549771,1756278645560,-1000.0,0.000312,6]
[381549773,1756278645570,-850.0,0.00031208,5]
[381549775,1756278645580,-433.93,0.00031281,15]
[381549777,1756278645596,-244.730756,0.00031286,2]
[381549779,1756278645605,-866.0,0.00031291,2]
[381549781,1756278645615,-1256.82960808,0.00031365,28]
[381549783,1756278645625,-433.93,0.00031381,15]
[381549785,1756278645635,-3679.0,0.00031387,2]
[381549787,1756278645644,-151.0,0.000314,7]
[381549789,1756278645654,-151.0,0.000314,7]
[381549791,1756278645663,-151.0,0.000314,7]
[381549793,1756278645673,-151.0,0.000314,7]
[381549795,1756278645683,-151.0,0.000314,7]
[381549797,1756278645692,-220.000708,0.000314,7]
[381549799,1756278645701,-244.730756,0.000314,7]
[381549801,1756278645711,-230.047055,0.000314,7]
[381549803,1756278645720,-230.047055,0.000314,7]
[381549805,1756278645729,-230.047055,0.000314,7]
[381549807,1756278645740,-230.047055,0.000314,7]
[381549809,1756278645750,-151.0,0.000314,7]
[381549811,1756278645759,-151.0,0.000314,7]
[381549813,1756278645769,-433.93,0.00031481,15]
[381549815,1756278645779,-151.0,0.000315,7]
[381549817,1756278645788,-151.0,0.000315,7]
[381549819,1756278645798,-151.0,0.000315,7]
[381549821,1756278645807,-165.477966,0.000315,7]
[381549823,1756278645816,-165.477966,0.000315,7]
[381549825,1756278645825,-165.477966,0.000315,7]
[381549827,1756278645835,-165.477966,0.000315,7]
[381549829,1756278645844,-151.0,0.000315,7]
[381549831,1756278645853,-151.0,0.000315,7]
[381549833,1756278645863,-254.036978,0.000315,7]
[381549835,1756278645872,-254.036978,0.000315,7]
[381549837,1756278645882,-254.036978,0.000315,7]
[381549839,1756278645892,-254.036978,0.000315,7]
[381549841,1756278645901,-151.0,0.000315,7]
[381549843,1756278645911,-151.0,0.000315,7]
[381549845,1756278645920,-151.0,0.000315,7]
[381549847,1756278645929,-151.0,0.000315,7]
[381549849,1756278645939,-151.0,0.000315,7]
[381549851,1756278645948,-151.0,0.000315,7]
[381549853,1756278645957,-151.0,0.000315,7]
[381549855,1756278645966,-245.069521,0.000315,7]
[381549857,1756278645976,-151.0,0.000315,7]
[381549860,1756278645986,-613.05136465,0.00031522,14]
[381549862,1756278645995,-196.62,0.00031525,30]
[381549864,1756278646004,-157.1,0.00031525,2]
[381549866,1756278646014,-500.0,0.00031525,2]
[381549868,1756278646023,-500.0,0.00031525,2]
[381549870,1756278646032,-500.0,0.00031525,2]
[381549872,1756278646041,-500.0,0.00031525,2]
[381549874,1756278646050,-500.0,0.00031525,2]
[381549876,1756278646059,-500.0,0.00031525,2]
[381549878,1756278646070,-500.0,0.00031525,2]
[381549880,1756278646079,-500.0,0.00031525,2]
[381549882,1756278646090,-500.0,0.00031525,2]
[381549884,1756278646099,-500.0,0.00031525,2]
[381549886,1756278646108,-500.0,0.00031525,2]
[381549887,1756278646117,-500.0,0.00031525,2]
[381549889,1756278646127,-500.0,0.00031525,2]
[381549891,1756278646136,-500.0,0.00031525,2]
[381549893,1756278646145,-500.0,0.00031525,2]
[381549895,1756278646154,-500.0,0.00031525,2]
[381549897,1756278646163,-314.66299066,0.00031525,2]
[381549899,1756278646176,-250.0,0.00031525,10]
[381549901,1756278646185,-378.20258,0.00031525,10]
[381549903,1756278646194,-2602.51,0.00031533,60]
[381549906,1756278646205,-151.0,0.00031533,7]
[381549908,1756278646216,-194.813698,0.00031533,7]
[381549910,1756278646226,-194.813698,0.00031533,7]
[381549912,1756278646235,-151.0,0.00031533,7]
[381549914,1756278646244,-194.813698,0.00031533,7]
[381549916,1756278646256,-194.813698,0.00031533,7]
[381549918,1756278646267,-151.0,0.00031533,7]
[381549920,1756278646276,-151.0,0.00031533,7]
[381549922,1756278646285,-151.0,0.00031533,7]
[381549924,1756278646295,-151.0,0.00031533,7]
[381549926,1756278646305,-151.0,0.00031533,7]
[381549928,1756278646314,-151.0,0.00031533,7]
[381549930,1756278646324,-151.0,0.00031533,7]
[381549932,1756278646336,-151.0,0.00031533,7]
[381549934,1756278646345,-151.0,0.00031533,7]
[381549936,1756278646354,-151.0,0.00031533,7]
[381549938,1756278646364,-151.0,0.00031533,7]
[381549940,1756278646373,-163.036903,0.00031533,7]
[381549942,1756278646383,-151.0,0.00031533,7]
[381549944,1756278646392,-151.0,0.00031533,7]
[381549946,1756278646401,-151.0,0.00031533,7]
[381549948,1756278646411,-300.677977,0.00031533,7]
[381549950,1756278646420,-300.677977,0.00031533,7]
[381549952,1756278646429,-300.677977,0.00031533,7]
[381549954,1756278646439,-300.677977,0.00031533,7]
[381549956,1756278646448,-151.0,0.00031533,7]
[381549958,1756278646458,-500.0,0.00031533,7]
[381549960,1756278646468,-500.0,0.00031533,7]
[381549962,1756278646477,-500.0,0.00031533,7]
[381549964,1756278646488,-500.0,0.00031533,7]
[381549966,1756278646499,-866.0,0.00031565,2]
[381549968,1756278646509,-433.93,0.00031581,15]
[381549970,1756278646519,-433.93,0.00031681,15]
[381549972,1756278646528,-237.0,0.0003169,2]
[381549974,1756278646538,-1260.0,0.00031696,2]
[381549976,1756278646547,-237.0,0.00031705,2]
[381549978,1756278646557,-233.51889341,0.00031726,2]
[381549980,1756278646567,-244.730756,0.0003175,10]
[381549982,1756278646576,-735.77020053,0.00031756,5]
[381549984,1756278646587,-433.93,0.00031781,15]
[381549986,1756278646597,-866.0,0.00031839,2]
[381549988,1756278646607,-433.93,0.00031881,15]
[381549990,1756278646616,-237.0,0.00031944,2]
[381549992,1756278646626,-4330.09069693,0.00031956,2]
[381549994,1756278646635,-200.0,0.0003197,2]
[381549996,1756278646645,-289.974,0.00031974,2]
[381549998,1756278646657,-150.185,0.00031974,2]
[381550001,1756278646667,-22314.98976921,0.00031976,2]
[381550003,1756278646677,-433.93,0.00031981,15]
[381550005,1756278646687,-6251.98269669,0.00031986,17]
[381550007,1756278646697,-151.0,0.00032,10]
[381550009,1756278646707,-151.0,0.00032,7]
[381550011,1756278646717,-151.0,0.00032,7]
[381550013,1756278646727,-151.0,0.00032,7]
[381550015,1756278646737,-153.119561,0.00032,7]
[381550017,1756278646746,-500.0,0.00032,30]
[381550019,1756278646756,-500.0,0.00032,30]
[381550021,1756278646766,-500.0,0.00032,30]
[381550023,1756278646776,-13951.92,0.00032,2]
[381550025,1756278646786,-500.0,0.00032,30]
[381550027,1756278646797,-500.0,0.00032,14]
[381550029,1756278646807,-4965.45,0.00032,7]
[381550031,1756278646816,-500.0,0.00032,7]
[381550033,1756278646827,-92975.71,0.00032,7]
[381550035,1756278646837,-417.15472785,0.00032,10]
[381550037,1756278646850,-157.69187,0.00032,7]
[381550039,1756278646860,-151.0,0.00032,7]
[381550041,1756278646870,-1002.41907,0.00032,7]
[381550043,1756278646880,-151.0,0.00032,7]
[381550045,1756278646890,-1002.41907,0.00032,7]
[381550047,1756278646900,-157.69187,0.00032,7]
[381550049,1756278646910,-1002.41907,0.00032,7]
[381550051,1756278646922,-151.0,0.00032,7]
[381550053,1756278646932,-151.0,0.00032,7]
[381550055,1756278646942,-157.69187,0.00032,7]
[381550058,1756278646952,-1002.41907,0.00032,7]
[381550060,1756278646962,-157.69187,0.00032,7]
[381550062,1756278646972,-151.0,0.00032,7]
[381550064,1756278646982,-235.914186,0.00032,7]
[381550066,1756278646992,-235.914186,0.00032,7]
[381550068,1756278647003,-151.0,0.00032,7]
[381550070,1756278647012,-235.914186,0.00032,7]
[381550072,1756278647023,-151.0,0.00032,7]
[381550074,1756278647033,-235.914186,0.00032,7]
[381550076,1756278647043,-151.0,0.00032,7]
[381550078,1756278647054,-151.0,0.00032,7]
[381550080,1756278647063,-1072.102854,0.00032,7]
[381550082,1756278647074,-1072.102854,0.00032,7]
[381550084,1756278647085,-1072.102854,0.00032,7]
[381550086,1756278647095,-151.0,0.00032,7]
[381550088,1756278647105,-1072.102854,0.00032,7]
[381550090,1756278647114,-151.0,0.00032,7]
[381550092,1756278647124,-3997.48191502,0.00032,120]
[381550094,1756278647134,-2157.0,0.00032071,2]
[381550096,1756278647145,-237.0,0.00032073,2]
[381550099,1756278647155,-334291.80347957,0.00032076,2]
[381550139,1756278647533,-183303.17406725,0.00032076,2]
[381550141,1756278647544,-151.0,0.00032076,7]
[381550143,1756278647554,-151.0,0.00032076,7]
[381550145,1756278647564,-151.0,0.00032076,7]
[381550147,1756278647574,-151.0,0.00032076,7]
[381550150,1756278647585,-151.0,0.00032076,7]
[381550152,1756278647595,-151.0,0.00032076,7]
[381550154,1756278647604,-151.0,0.00032076,7]
[381550156,1756278647614,-151.0,0.00032076,7]
[381550158,1756278647623,-151.0,0.00032076,7]
[381550160,1756278647633,-151.0,0.00032076,7]
[381550162,1756278647643,-230.047055,0.00032076,7]
[381550164,1756278647653,-230.047055,0.00032076,7]
[381550166,1756278647662,-230.047055,0.00032076,7]
[381550168,1756278647672,-230.047055,0.00032076,7]
[381550170,1756278647681,-165.477966,0.00032076,7]
[381550172,1756278647691,-165.477966,0.00032076,7]
[381550174,1756278647701,-165.477966,0.00032076,7]
[381550176,1756278647710,-165.477966,0.00032076,7]
[381550178,1756278647721,-151.0,0.00032076,7]
[381550180,1756278647730,-151.0,0.00032076,7]
[381550182,1756278647740,-254.036978,0.00032076,7]
[381550184,1756278647750,-254.036978,0.00032076,7]
[381550187,1756278647760,-254.036978,0.00032076,7]
[381550189,1756278647769,-254.036978,0.00032076,7]
[381550191,1756278647779,-151.428142,0.00032076,7]
[381550193,1756278647788,-151.0,0.00032076,7]
[381550195,1756278647798,-151.0,0.00032076,7]
[381550197,1756278647808,-151.0,0.00032076,7]
[381550199,1756278647818,-190.124591,0.00032076,7]
[381550201,1756278647828,-190.124591,0.00032076,7]
[381550203,1756278647838,-190.124591,0.00032076,7]
[381550205,1756278647848,-190.124591,0.00032076,7]
[381550207,1756278647858,-151.0,0.00032076,7]
[381550209,1756278647868,-151.0,0.00032076,7]
[381550211,1756278647877,-243.323146,0.00032076,7]
[381550214,1756278647887,-151.0,0.00032076,7]
[381550216,1756278647897,-243.323146,0.00032076,7]
[381550218,1756278647907,-243.323146,0.00032076,7]
[381550220,1756278647918,-243.323146,0.00032076,7]
[381550222,1756278647928,-151.0,0.00032076,7]
[381550224,1756278647937,-151.0,0.00032076,7]
[381550226,1756278647947,-151.533464,0.00032076,7]
[381550228,1756278647956,-151.0,0.00032076,7]
[381550230,1756278647967,-151.0,0.00032076,7]
[381550232,1756278647977,-181.951389,0.00032076,7]
[381550234,1756278647986,-181.951389,0.00032076,7]
[381550236,1756278647996,-181.951389,0.00032076,7]
[381550238,1756278648006,-151.0,0.00032076,7]
[381550240,1756278648015,-181.951389,0.00032076,7]
[381550242,1756278648025,-194.813698,0.00032076,7]
[381550244,1756278648034,-194.813698,0.00032076,7]
[381550246,1756278648044,-151.0,0.00032076,7]
[381550248,1756278648054,-194.813698,0.00032076,7]
[381550250,1756278648064,-194.813698,0.00032076,7]
[381550252,1756278648073,-151.0,0.00032076,7]
[381550254,1756278648083,-164.468624,0.00032076,7]
[381550256,1756278648093,-151.0,0.00032076,7]
[381550258,1756278648103,-151.0,0.00032076,7]
[381550261,1756278648112,-151.0,0.00032076,7]
[381550263,1756278648122,-151.0,0.00032076,7]
[381550265,1756278648132,-151.0,0.00032076,7]
[381550267,1756278648142,-151.0,0.00032076,7]
[381550269,1756278648152,-189.288119,0.00032076,7]
[381550271,1756278648162,-151.0,0.00032076,7]
[381550273,1756278648175,-151.0,0.00032076,7]
[381550275,1756278648186,-151.0,0.00032076,7]
[381550276,1756278648196,-151.0,0.00032076,7]
[381550277,1756278648206,-151.0,0.00032076,7]
[381550278,1756278648216,-151.0,0.00032076,7]
[381550279,1756278648225,-179.595668,0.00032076,7]
[381550280,1756278648235,-151.0,0.00032076,7]
[381550281,1756278648244,-151.0,0.00032076,7]
[381550282,1756278648254,-151.0,0.00032076,7]
[381550283,1756278648264,-151.0,0.00032076,7]
[381550284,1756278648274,-151.0,0.00032076,7]
[381550285,1756278648284,-151.0,0.00032076,7]
[381550286,1756278648293,-300.677977,0.00032076,7]
[381550287,1756278648306,-300.677977,0.00032076,7]
[381550288,1756278648315,-300.677977,0.00032076,7]
[381550289,1756278648325,-300.677977,0.00032076,7]
[381550290,1756278648335,-151.0,0.00032076,7]
[381550291,1756278648344,-500.0,0.00032076,7]
[381550292,1756278648354,-500.0,0.00032076,7]
[381550293,1756278648576,-500.0,0.00032076,7]
[381550294,1756278648588,-500.0,0.00032076,7]
[381550295,1756278648597,-157.69187,0.00032076,7]
[381550296,1756278648607,-151.0,0.00032076,7]
[381550297,1756278648618,-1002.41907,0.00032076,7]
[381550298,1756278648628,-151.0,0.00032076,7]
[381550299,1756278648638,-1002.41907,0.00032076,7]
[381550300,1756278648648,-157.69187,0.00032076,7]
[381550301,1756278648657,-1002.41907,0.00032076,7]
[381550302,1756278648667,-151.0,0.00032076,7]
[381550303,1756278648676,-153.764034,0.00032076,7]
[381550304,1756278648686,-157.69187,0.00032076,7]
[381550305,1756278648696,-1002.41907,0.00032076,7]
[381550306,1756278648705,-157.69187,0.00032076,7]
[381550307,1756278648715,-235.914186,0.00032076,7]
[381550308,1756278648724,-235.914186,0.00032076,7]
[381550309,1756278648733,-151.0,0.00032076,7]
[381550310,1756278648743,-235.914186,0.00032076,7]
[381550311,1756278648752,-235.914186,0.00032076,7]
[381550312,1756278648762,-151.0,0.00032076,7]
[381550313,1756278648771,-151.0,0.00032076,7]
[381550314,1756278648781,-1072.102854,0.00032076,7]
[381550315,1756278648791,-1072.102854,0.00032076,7]
[381550316,1756278648802,-1072.102854,0.00032076,7]
[381550317,1756278648812,-151.0,0.00032076,7]
[381550318,1756278648822,-1072.102854,0.00032076,7]
[381550319,1756278648832,-151.0,0.00032076,7]
[381550320,1756278648843,-638.0,0.00032079,2]
[381550321,1756278648852,-433.93,0.00032081,15]
[381550322,1756278648862,-866.0,0.00032112,2]
[381550323,1756278648872,-237.0,0.00032158,2]
[381550324,1756278648881,-237.0,0.00032158,2]
[381550325,1756278648892,-433.93,0.00032181,15]
[381550326,1756278648902,-150.637,0.0003224,2]
[381550327,1756278648912,-195.869,0.0003224,2]
[381550328,1756278648921,-220.532,0.0003224,2]
[381550329,1756278648930,-987.109,0.0003224,2]
[381550330,1756278648940,-1360.0,0.00032244,2]
[381550331,1756278648950,-433.93,0.00032281,15]
[381550332,1756278648959,-433.93,0.00032381,15]
[381550333,1756278648969,-1152.0,0.00032382,2]
[381550334,1756278648978,-866.0,0.00032386,2]
[381550335,1756278648988,-6989.83,0.000324,7]
[381550336,1756278648997,-433.93,0.00032481,15]
[381550337,1756278649006,-237.0,0.00032495,2]
[381550338,1756278649016,-433.93,0.00032581,15]
[381550339,1756278649025,-866.0,0.0003266,2]
[381550340,1756278649035,-433.93,0.00032681,15]
[381550341,1756278649044,-924.61871491,0.00032694,7]
[381550342,1756278649053,-160.0,0.00032727,3]
[381550343,1756278649063,-237.0,0.00032752,7]
[381550344,1756278649072,-168.41,0.00032757,2]
[381550345,1756278649081,-433.93,0.00032781,15]
[381550346,1756278649091,-1460.0,0.00032792,2]
[381550347,1756278649100,-508.84353882,0.00032877,5]
[381550348,1756278649110,-433.93,0.00032881,60]
[381550349,1756278649119,-180.41693337,0.0003292,10]
[381550350,1756278649128,-866.0,0.00032934,2]
[381550351,1756278649138,-433.93,0.00032981,60]
[381550352,1756278649148,-169.0,0.00033,14]
[381550353,1756278649158,-205.0,0.00033,14]
[381550354,1756278649167,-433.93,0.00033081,60]
[381550355,1756278649184,-242.15909246,0.00033095,2]
[381550357,1756278649194,-2174.495079,0.00033109,2]
[381550358,1756278649204,-244.730756,0.00033125,10]
[381550359,1756278649214,-205.0,0.00033151,30]
[381550360,1756278649226,-1046.694467,0.00033165,2]
[381550361,1756278649236,-433.93,0.00033181,60]
[381550362,1756278649246,-873.92059904,0.00033208,2]
[381550363,1756278649256,-160.0,0.00033267,4]
[381550364,1756278649273,-433.93,0.00033281,60]
[381550365,1756278649287,-13951.92,0.000333,14]
[381550366,1756278649297,-4965.45,0.000333,7]
[381550367,1756278649307,-92975.71,0.000333,14]
[381550368,1756278649318,-244.730756,0.00033338,6]
[381550369,1756278649328,-1560.0,0.0003334,2]
[381550370,1756278649339,-433.93,0.00033381,60]
[381550371,1756278649349,-151.0,0.000334,12]
[381550372,1756278649359,-434.36097435,0.00033481,60]
[381550373,1756278649369,-5000.0,0.00033533,4]
[381550374,1756278649379,-244.730756,0.00033596,7]
[381550375,1756278649389,-6989.83,0.000336,7]
[381550376,1756278649399,-150.0,0.00033612,2]
[381550377,1756278649409,-933.485983,0.00033612,2]
[381550378,1756278649419,-32973.2979769,0.00033699,2]
[381550379,1756278649429,-6251.98269669,0.00033712,21]
[381550380,1756278649439,-160.0,0.00033806,5]
[381550381,1756278649448,-150.0,0.00033815,2]
[381550382,1756278649458,-1660.0,0.00033888,2]
[381550383,1756278649467,-150.0,0.00033979,7]
[381550384,1756278649477,-217.23771399,0.00034,10]
[381550385,1756278649487,-529.56067766,0.00034,10]
[381550386,1756278649499,-150.0,0.00034017,2]
[381550387,1756278649509,-150.0,0.0003422,2]
[381550388,1756278649519,-4330.09069693,0.00034285,2]
[381550389,1756278649529,-160.0,0.00034346,6]
[381550390,1756278649539,-150.0,0.000344,5]
[381550391,1756278649550,-485.1954352,0.00034402,2]
[381550392,1756278649561,-187.29,0.00034423,2]
[381550393,1756278649571,-1760.0,0.00034436,2]
[381550394,1756278649581,-251.11897888,0.00034464,2]
[381550395,1756278649591,-244.730756,0.000345,10]
[381550396,1756278649601,-1128.517335,0.00034521,120]
[381550397,1756278649611,-169.0,0.00034521,30]
[381550398,1756278649622,-205.0,0.00034521,30]
[381550399,1756278649632,-243.02,0.00034524,60]
[381550400,1756278649642,-244.730756,0.00034556,2]
[381550401,1756278649652,-154.0,0.000346,120]
[381550402,1756278649662,-243.02,0.00034624,60]
[381550403,1756278649672,-200.0,0.00034648,120]
[381550404,1756278649682,-13951.92,0.000347,14]
[381550405,1756278649692,-243.02,0.00034724,60]
[381550406,1756278649701,-151.0,0.000348,17]
[381550407,1756278649711,-6989.83,0.000348,7]
[381550408,1756278649721,-4965.45,0.000348,7]
[381550409,1756278649731,-4355.36512925,0.000348,14]
[381550410,1756278649747,-1524.92231469,0.000348,14]
[381550411,1756278649758,-1695.03741689,0.000348,14]
[381550412,1756278650107,-839.44517487,0.0002507,10]
[381550413,1756278650168,-1372.47482513,0.0002507,10]
[381550414,1756278650182,-33709.01247288,0.000348,14]
[381550415,1756278650194,-471.38510949,0.000348,14]
[381550416,1756278650206,-1114.0,0.000348,14]
[381550417,1756278650219,-1581.15764002,0.000348,14]
[381550440,1756278650753,-160.0,0.0002533,2]
[381550441,1756278650763,-205.11668389,0.00031525,60]
[381550442,1756278650775,-4794.88331611,0.00031525,60]
[381550443,1756278650785,-1607.70160869,0.000348,14]
[381550444,1756278650808,-5000.27978799,0.000348,14]
[381550445,1756278651862,-500.0,0.00025173,2]
[381550446,1756278651872,-500.0,0.00025447,2]
[381550447,1756278651881,-532.23854974,0.00025721,2]
[381550448,1756278651891,-153.0,0.00029371,2]
[381550449,1756278651900,-151.0,0.000294,7]
[381550450,1756278651909,-151.0,0.000294,7]
[381550451,1756278651919,-151.0,0.00032,7]
[381550452,1756278651928,-151.0,0.00032,7]
[381550453,1756278651938,-151.0,0.00032076,7]
[381550454,1756278651947,-151.0,0.00032076,7]
[381550455,1756278651956,-8606.506085,0.000348,14]
[381550754,1756278659964,960.12244,0.00013699,2]
[381550755,1756278660193,960.12244,0.00020187,2]
[381550760,1756278676291,4376.38788777,0.000199,2]
[381550761,1756278676403,4376.38788768,0.00021627,2]
[381550775,1756278754855,-4376.38788768,0.00023353,2]
[381550776,1756278755052,-0.01,0.00023443,2]
[381550777,1756278755104,-574.20356919,0.00023443,2]
[381550778,1756278755301,-574.22356919,0.00023443,2]
[381550779,1756278755335,-8851.56286162,0.00023443,2]
[381550780,1756278755514,-180.01576143,0.00024122,2]
[381550781,1756278755548,-180.01576143,0.00024203,2]
[381550782,1756278755583,-4279.94695428,0.00024222,2]
[381550783,1756278755668,-720.05304572,0.00024222,2]
[381550784,1756278755719,-180.01576143,0.00024285,2]
[381550785,1756278755754,-198.67991338,0.00024299,2]
[381550786,1756278755788,-500.0,0.00024299,2]
[381550787,1756278755821,-500.0,0.00024299,2]
[381550788,1756278755854,-469.00324286,0.00024299,2]
[381550789,1756278755886,-154.45924833,0.00024299,2]
[381550790,1756278755919,-484.51574742,0.00024299,2]
[381550791,1756278755951,-500.0,0.00024299,2]
[381550792,1756278755984,-500.0,0.00024299,2]
[381550793,1756278756017,-500.0,0.00024299,2]
[381550794,1756278756049,-348.35643561,0.00024299,2]
[381550795,1756278756081,-500.0,0.00024299,2]
[381550796,1756278756269,-414.7938398,0.00024299,2]
[381550797,1756278756303,-500.0,0.00024299,2]
[381550798,1756278756336,-2000.0,0.000243,2]
[381550799,1756278756368,-1200.0,0.00024365,2]
[381550800,1756278756400,-180.01576143,0.00024366,2]
[381550801,1756278756435,-500.0,0.00024465,2]
[381550802,1756278756623,-500.0,0.00024465,2]
[381550803,1756278756658,-500.0,0.00024465,2]
[381550804,1756278756692,-500.0,0.00024465,2]
[381550805,1756278756726,-500.0,0.00024465,2]
[381550806,1756278756761,-500.0,0.00024465,2]
[381550807,1756278756961,-228.54846164,0.00024465,2]
[381550808,1756278757341,-11.79163784,0.00024466,2]
[381550809,1756278757362,-500.0,0.00024466,2]
[381550810,1756278757414,-228.54846164,0.00024466,2]
[381550811,1756278757432,-4542.91307672,0.00024466,2]
[381550813,1756278757718,-500.0,0.00024465,2]
[381550814,1756278757728,-9500.01,0.00024466,2]
[381550815,1756278757754,-10000.01,0.00024466,2]
[381550816,1756278757812,-10000.01,0.00024466,2]
[381550819,1756278764953,-5000.0,0.00024222,2]
[381550820,1756278765011,-0.01,0.00024466,2]
[381550821,1756278765120,-10000.01,0.00024466,2]
[381550822,1756278765343,-4364.570622,0.00024466,2]
[381550823,1756278765400,-500.0,0.00024473,2]
[381550824,1756278765557,-270.868756,0.00025001,10]
[381550825,1756278765646,-1747.161244,0.00025001,10]
[381550828,1756278771557,1681.7,0.00025001,10]
[381550829,1756278772206,500.0,0.00024465,2]
[381550830,1756278772817,500.0,0.00024465,2]
[381550831,1756278772916,500.0,0.00024465,2]
[381550832,1756278773258,500.0,0.00024465,2]
[381550833,1756278773622,500.0,0.00024465,2]
[381550834,1756278774006,500.0,0.00024465,2]
[381550835,1756278774361,500.0,0.00024465,2]
[381550836,1756278774750,604.98392315,0.00024465,2]
[381550837,1756278774881,719.00358885,0.00025011,2]
[381550838,1756278774908,4280.99641115,0.00025011,2]
[381550840,1756278782541,300.0,0.0002501,2]
[381550846,1756278814983,-317.11727587,0.00024921,2]
[381550847,1756278815267,-8279.10152511,0.0002499,2]
[381550849,1756278815519,-10000.01,0.0002499,2]
[381550851,1756278815759,-10000.01,0.0002499,2]
[381550852,1756278815926,-10000.01,0.0002499,2]
[381550853,1756278816122,-10000.01,0.0002499,2]
[381550854,1756278816322,-10000.01,0.0002499,2]
[381550855,1756278816531,-10000.01,0.0002499,2]
[381550856,1756278816736,-10000.01,0.0002499,2]
[381550857,1756278816942,-10000.01,0.0002499,2]
[381550865,1756278862453,4756.42698721,0.000199,2]